bitfinex-derivatives/quotes_SOLF0:USTF0_20250413
["timestamp","ask_amount","ask_price","bid_price","bid_amount"]
[1744546627983,38.81,130.08,130.05,0.05094272]
[1744546628184,7.6904,130.07,130.05,0.05094272]
[1744546628490,31.12,130.08,130.05,0.05094272]
[1744546628692,7.6909,130.06,130.05,0.05094272]
[1744546629493,7.6924,130.04,130.0,7.6941]
[1744546629681,38.8124,130.04,130.0,7.6941]
[1744546629885,31.12,130.04,130.01,7.6938]
[1744546630292,31.12,130.04,129.97,2.1552]
[1744546630493,31.17558077,130.04,130.01,0.04979542]
[1744546630694,0.05558077,130.04,130.01,0.04979542]
[1744546630896,0.05558077,130.04,130.03,7.6926]
[1744546631494,0.05558077,130.04,130.02,7.6932]
[1744546632094,0.05558077,130.04,130.01,7.74339542]
[1744546632895,7.74768077,130.04,130.01,7.74339542]
[1744546633595,0.05558077,130.04,130.01,7.74339542]
[1744546633998,7.74788077,130.04,130.01,0.04979542]
[1744546634299,0.05558077,130.04,130.01,0.04979542]
[1744546634500,0.05558077,130.04,130.01,7.74329542]
[1744546636600,7.74778077,130.04,130.01,7.74329542]
[1744546636795,0.05558077,130.04,130.01,0.04979542]
[1744546637200,7.6931,130.03,130.01,0.04979542]
[1744546637603,38.7731,130.03,130.01,0.04979542]
[1744546638502,31.08,130.03,130.01,0.04979542]
[1744546638898,31.08,130.03,130.01,7.74319542]
[1744546639599,0.05558077,130.04,130.02,7.6932]
[1744546640198,0.05558077,130.04,130.03,7.6926]
[1744546640600,0.05558077,130.04,130.02,7.6929]
[1744546643203,0.05558077,130.04,130.03,7.6926]
[1744546644501,640.38,130.09,130.05,7.6915]
[1744546644803,648.0694,130.09,130.05,7.6915]
[1744546645701,648.0694,130.09,130.06,0.05681509]
[1744546646003,640.38,130.09,130.06,0.05681509]
[1744546646201,31.08,130.09,130.06,0.05681509]
[1744546646502,38.7677,130.12,130.08,7.6892]
[1744546647003,38.7677,130.12,130.09,0.05835658]
[1744546647504,31.08,130.12,130.09,0.05835658]
[1744546648293,31.08,130.12,130.02,364.3059]
[1744546648504,4.2149,130.11,130.02,364.3059]
[1744546648803,7.6901,130.08,130.04,7.6917]
[1744546649004,31.08,130.08,130.04,7.6917]
[1744546649204,31.08,130.08,130.02,364.3059]
[1744546649405,0.04986615,130.06,130.04,0.0500621]
[1744546649906,0.04986615,130.06,130.04,7.7419621]
[1744546650304,0.04986615,130.06,130.04,0.0500621]
[1744546650909,0.04986615,130.06,130.05,7.6915]
[1744546652607,0.04986615,130.06,130.04,0.0500621]
[1744546653708,7.74086615,130.06,130.04,0.0500621]
[1744546654107,7.6915,130.05,130.04,0.0500621]
[1744546654306,38.7715,130.05,130.04,0.0500621]
[1744546654505,31.08,130.05,130.04,0.0500621]
[1744546656503,0.04986615,130.06,130.04,0.0500621]
[1744546656905,31.08,130.11,130.04,7.7300621]
[1744546657105,31.08,130.14,130.05,7.15386009]
[1744546657305,31.08,130.14,130.03,4.2119]
[1744546657513,7.6874,130.12,130.04,10.24932643]
[1744546657700,7.6874,130.12,130.05,7.15126937]
[1744546657903,7.6874,130.12,130.03,4.2119]
[1744546658203,7.6874,130.12,130.08,7.6893]
[1744546659105,31.08,130.14,130.07,0.05744184]
[1744546659708,107.62612377,130.19,130.07,0.05744184]
[1744546659911,31.06,130.18,130.07,358.0]
[1744546660208,7.6854,130.16,130.12,0.05122929]
[1744546660613,31.06,130.17,130.12,0.05122929]
[1744546660812,7.6867,130.14,130.12,0.05122929]
[1744546661601,7.6858,130.15,130.12,0.05122929]
[1744546662611,7.6852,130.16,130.12,7.73842929]
[1744546662912,31.06,130.17,130.12,0.05122929]
[1744546663113,7.685,130.16,130.12,0.05122929]
[1744546663309,31.06,130.17,130.12,0.05122929]
[1744546664502,2.0446,130.22,130.12,0.05122929]
[1744546664503,31.04,130.2,130.12,0.05122929]
[1744546664703,31.04,130.2,130.17,7.6843]
[1744546664911,609.16,130.23,130.15,0.04882212]
[1744546664912,640.2,130.23,130.15,0.04882212]
[1744546665110,640.2,130.23,130.11,389.04]
[1744546665312,7.6816,130.22,130.18,7.7348173]
[1744546665804,7.6811,130.23,130.19,7.6832]
[1744546666208,31.04,130.24,130.16,4.1898]
[1744546666409,31.04,130.24,130.2,0.05802471]
[1744546666911,4.1991,130.28,130.2,0.05802471]
[1744546667111,31.02,130.27,130.17,2.0283]
[1744546667412,31.02,130.27,130.23,0.05567604]
[1744546668813,7.6794,130.26,130.23,0.05567604]
[1744546669019,31.02,130.27,130.23,0.05567604]
[1744546669914,7.6794,130.26,130.23,0.05567604]
[1744546670112,31.02,130.27,130.23,0.05567604]
[1744546670715,7.6782,130.28,130.23,0.05567604]
[1744546670716,4.1934,130.31,130.23,0.05567604]
[1744546670919,31.02,130.3,130.19,31.02]
[1744546671119,7.6788,130.27,130.26,0.05837502]
[1744546671419,31.02,130.3,130.23,7.6804]
[1744546671619,31.02,130.3,130.25,0.05087148]
[1744546671620,7.6781,130.28,130.25,0.05087148]
[1744546671821,31.02,130.3,130.25,0.05087148]
[1744546672215,7.6782,130.28,130.25,0.05087148]
[1744546672622,31.02,130.3,130.25,0.05087148]
[1744546672815,7.6783,130.28,130.25,0.05087148]
[1744546673319,4.1934,130.31,130.25,0.05087148]
[1744546674119,7.6788,130.27,130.25,0.05087148]
[1744546674625,7.6781,130.28,130.25,0.05087148]
[1744546677324,7.6776,130.29,130.25,0.05087148]
[1744546677829,7.6769,130.3,130.25,0.05087148]
[1744546678125,4.1934,130.31,130.25,0.05087148]
[1744546678427,7.6774,130.29,130.25,7.73017148]
[1744546678623,4.1934,130.31,130.25,0.05087148]
[1744546679022,2.137,130.3,130.25,0.05087148]
[1744546679520,7.679,130.27,130.25,0.05087148]
[1744546679919,31.0,130.28,130.25,0.05087148]
[1744546680125,7.6789,130.27,130.25,0.05087148]
[1744546680320,31.0,130.28,130.25,0.05087148]
[1744546680522,31.0,130.28,130.19,358.0]
[1744546680824,31.0,130.28,130.18,4.0669]
[1744546681616,38.6782,130.28,130.24,7.6799]
[1744546681924,0.04943689,130.27,130.24,7.6799]
[1744546682225,7.72803689,130.27,130.25,0.05048999]
[1744546682420,7.6786,130.27,130.2,2.1451]
[1744546682620,0.05197429,130.27,130.25,0.0579073]
[1744546682923,31.0,130.32,130.25,0.05863353]
[1744546683223,31.0,130.33,130.27,7.678]
[1744546683424,31.0,130.33,130.24,4.2643]
[1744546683824,38.6753,130.33,130.24,4.2643]
[1744546684025,31.0,130.33,130.27,0.04873614]
[1744546684925,7.677,130.3,130.27,0.04873614]
[1744546685322,31.0,130.33,130.27,0.04873614]
[1744546685526,7.677,130.3,130.27,0.04873614]
[1744546685727,31.0,130.29,130.27,0.04873614]
[1744546686025,7.6779,130.28,130.24,4.2643]
[1744546686224,7.6779,130.28,130.27,0.04895081]
[1744546692541,33.1123,130.29,130.2,4.2314]
[1744546693130,7.6783,130.28,130.2,4.2314]
[1744546693334,7.6783,130.28,130.24,7.6799]
[1744546693632,0.05213753,130.27,130.25,0.05912296]
[1744546693835,0.05213753,130.27,130.25,7.73872296]
[1744546694932,0.05213753,130.27,130.26,7.6791]
[1744546696132,2.0686,130.34,130.25,358.05912296]
[1744546696339,33.1119,130.35,130.26,35.1433]
[1744546696735,7.675,130.33,130.3,7.6765]
[1744546697132,30.96,130.35,130.26,35.1433]
[1744546697338,639.2,130.4,130.3,0.05025229]
[1744546697538,3.50721616,130.39,130.26,393.1433]
[1744546697836,7.6747,130.34,130.31,7.676]
[1744546698030,7.6747,130.34,130.31,7.73435923]
[1744546698227,30.96,130.36,130.31,0.05835923]
[1744546698431,30.96,130.36,130.27,30.96]
[1744546698640,30.96,130.36,130.32,0.0570147]
[1744546699637,7.6747,130.34,130.32,0.0570147]
[1744546699837,30.96,130.36,130.32,0.0570147]
[1744546700042,7.6749,130.33,130.32,0.0570147]
[1744546701235,30.96,130.36,130.32,0.0570147]
[1744546701636,30.96,130.37,130.32,0.0570147]
[1744546702243,7.6742,130.35,130.32,0.0570147]
[1744546702443,30.96,130.37,130.32,0.0570147]
[1744546702843,7.6741,130.35,130.32,0.0570147]
[1744546703146,30.96,130.37,130.32,7.7323147]
[1744546703440,7.6735,130.36,130.32,7.7323147]
[1744546703745,30.96,130.37,130.32,7.7323147]
[1744546704047,30.96,130.37,130.32,0.0570147]
[1744546704945,7.6735,130.36,130.32,0.0570147]
[1744546705246,7.6735,130.36,130.32,7.7324147]
[1744546705446,7.6735,130.36,130.32,0.0570147]
[1744546705745,7.6735,130.36,130.32,7.7322147]
[1744546706044,7.6738,130.35,130.32,0.0570147]
[1744546706244,30.96,130.37,130.32,0.0570147]
[1744546706445,7.6741,130.35,130.32,0.0570147]
[1744546708141,7.6741,130.35,130.32,7.7323147]
[1744546708346,30.96,130.37,130.32,0.0570147]
[1744546708846,7.674,130.35,130.32,0.0570147]
[1744546710151,30.96,130.37,130.32,0.0570147]
[1744546710346,2.102,130.39,130.32,0.0570147]
[1744546710749,7.672,130.38,130.34,7.6743]
[1744546711250,2.102,130.39,130.35,0.05532182]
[1744546711447,9.7737,130.39,130.35,7.72872182]
[1744546711648,2.102,130.39,130.35,0.05532182]
[1744546711855,7.672,130.38,130.35,0.05532182]
[1744546712055,2.102,130.39,130.35,0.05532182]
[1744546712247,2.102,130.39,130.27,30.96]
[1744546712449,7.6741,130.35,130.31,7.6757]
[1744546712653,38.6341,130.35,130.31,7.6757]
[1744546712951,7.6744,130.34,130.3,7.6763]
[1744546713142,30.96,130.35,130.27,30.96]
[1744546713453,0.05202093,130.32,130.3,0.05279009]
[1744546714055,0.05202093,130.32,130.31,7.6761]
[1744546714850,30.96,130.37,130.3,0.05279009]
[1744546715052,2.102,130.39,130.31,30.96]
[1744546715351,30.96,130.41,130.31,35.1399]
[1744546715561,7.6717,130.39,130.35,7.6733]
[1744546716155,7.6717,130.39,130.36,0.05279632]
[1744546716357,7.6717,130.39,130.36,7.72589632]
[1744546716655,7.6717,130.39,130.36,0.05279632]
[1744546716860,7.6722,130.38,130.36,0.05279632]
[1744546717155,30.96,130.41,130.36,0.05279632]
[1744546717356,7.6717,130.39,130.36,0.05279632]
[1744546717557,30.96,130.41,130.37,7.6724]
[1744546717954,38.6307,130.41,130.37,7.6724]
[1744546718157,30.96,130.41,130.38,7.6718]
[1744546718354,30.96,130.41,130.36,0.05279632]
[1744546719154,38.6087,130.44,130.36,0.05279632]
[1744546719361,30.94,130.44,130.35,30.94]
[1744546719556,30.94,130.44,130.39,0.04982777]
[1744546719757,38.6085,130.44,130.39,0.04982777]
[1744546720156,38.6085,130.44,130.41,7.6699]
[1744546720356,4.0338,130.45,130.39,0.04982777]
[1744546721063,30.94,130.44,130.39,0.04982777]
[1744546721461,7.6706,130.41,130.39,0.04982777]
[1744546721760,30.94,130.44,130.39,0.04982777]
[1744546721963,38.609,130.44,130.39,0.04982777]
[1744546722158,30.94,130.44,130.4,7.6705]
[1744546722457,30.94,130.44,130.39,0.04982777]
[1744546722965,7.6696,130.43,130.39,7.72092777]
[1744546723259,7.6696,130.43,130.39,0.04982777]
[1744546724057,30.94,130.44,130.39,0.04982777]
[1744546725662,30.92,130.47,130.39,30.96982777]
[1744546725859,30.92,130.47,130.39,30.92]
[1744546726058,30.92,130.47,130.42,0.05526313]
[1744546726259,2.0414,130.46,130.36,392.9973]
[1744546726456,2.11,130.45,130.36,392.9973]
[1744546726662,7.6677,130.46,130.43,7.6687]
[1744546726857,2.139,130.49,130.4,30.92]
[1744546727261,7.667,130.47,130.43,7.6688]
[1744546727461,0.04866729,130.46,130.43,7.72282576]
[1744546728363,7.71606729,130.46,130.43,7.72282576]
[1744546728663,7.71606729,130.46,130.43,0.05402576]
[1744546728864,7.6682,130.45,130.43,0.05402576]
[1744546729256,30.96866729,130.46,130.43,0.05402576]
[1744546729862,38.63596729,130.46,130.43,0.05402576]
[1744546731064,7.668,130.45,130.43,0.05402576]
[1744546731365,30.96866729,130.46,130.43,7.72272576]
[1744546731765,0.04866729,130.46,130.45,7.6679]
[1744546732064,0.04866729,130.46,130.43,0.05402576]
[1744546733059,30.9,130.45,130.43,0.05402576]
[1744546733255,7.6685,130.44,130.43,0.05402576]
[1744546733457,35.101,130.45,130.43,0.05402576]
[1744546733767,7.6685,130.44,130.43,0.05402576]
[1744546735066,42.769,130.45,130.43,0.05402576]
[1744546735367,35.101,130.45,130.43,0.05402576]
[1744546735867,35.101,130.45,130.36,32.9423]
[1744546736067,37.0884,130.45,130.36,32.9423]
[1744546736961,0.05523102,130.42,130.39,7.72234321]
[1744546737665,0.05523102,130.42,130.4,7.6707]
[1744546738668,0.05523102,130.42,130.39,7.72254321]
[1744546738867,0.05523102,130.42,130.39,0.05154321]
[1744546739061,7.6702,130.41,130.39,0.05154321]
[1744546739470,0.05523102,130.42,130.39,0.05154321]
[1744546739766,7.6702,130.41,130.39,0.05154321]
[1744546742070,38.5702,130.41,130.39,0.05154321]
[1744546742571,7.6708,130.4,130.39,0.05154321]
[1744546742870,30.9,130.41,130.39,0.05154321]
[1744546743072,7.6708,130.4,130.39,0.05154321]
[1744546746370,7.6708,130.4,130.36,7.6729]
[1744546746371,30.9,130.41,130.29,607.88]
[1744546746575,1.947,130.39,130.3,32.952]
[1744546746874,7.6735,130.36,130.32,7.6752]
[1744546747680,7.72455293,130.35,130.33,0.05529661]
[1744546748174,0.05035293,130.35,130.33,0.05529661]
[1744546748771,7.6743,130.34,130.33,0.05529661]
[1744546749075,0.05035293,130.35,130.27,30.92]
[1744546749275,7.6754,130.33,130.29,7.6771]
[1744546749476,30.9,130.37,130.27,30.92]
[1744546750171,0.05155536,130.33,130.31,0.05331403]
[1744546750375,30.92,130.32,130.24,39.90814621]
[1744546750679,33.0359,130.32,130.24,8.98814621]
[1744546751376,7.6788,130.27,130.24,8.98814621]
[1744546751769,7.6788,130.27,130.24,9.04712548]
[1744546751969,30.92,130.28,130.24,9.04712548]
[1744546752375,7.6788,130.27,130.24,9.04712548]
[1744546753574,7.6788,130.27,130.24,0.05897927]
[1744546753777,30.92,130.28,130.24,0.05897927]
[1744546753976,0.04850606,130.29,130.24,0.05897927]
[1744546754173,0.04850606,130.29,130.25,31.0]
[1744546754371,31.0,130.34,130.26,2.0548]
[1744546754679,31.0,130.34,130.27,2.1161]
[1744546755081,38.6744,130.34,130.3,7.6764]
[1744546755273,31.0,130.34,130.27,2.1161]
[1744546755682,0.05490457,130.32,130.29,7.72578561]
[1744546756678,0.05490457,130.32,130.29,0.04888561]
[1744546757178,0.05490457,130.32,130.29,7.72598561]
[1744546757475,0.05490457,130.32,130.29,0.04888561]
[1744546757680,0.05490457,130.32,130.3,7.6764]
[1744546761191,0.05490457,130.32,130.31,7.6761]
[1744546762790,0.05490457,130.32,130.3,7.6765]
[1744546763089,0.05490457,130.32,130.29,0.04888561]
[1744546763390,0.05490457,130.32,130.3,7.6762]
[1744546763594,0.05490457,130.32,130.29,0.04888561]
[1744546764094,0.05490457,130.32,130.29,7.72558561]
[1744546764389,0.05490457,130.32,130.29,0.04888561]
[1744546764590,7.73070457,130.32,130.29,0.04888561]
[1744546766295,7.6761,130.31,130.29,0.04888561]
[1744546766992,0.05490457,130.32,130.29,0.04888561]
[1744546767596,7.6766,130.31,130.29,0.04888561]
[1744546767897,31.0,130.3,130.29,0.04888561]
[1744546768189,31.0,130.3,130.23,4.1493]
[1744546768395,31.0,130.3,130.25,7.6792]
[1744546768596,7.6777,130.29,130.25,7.6792]
[1744546769195,0.04965,130.28,130.26,0.0582223]
[1744546770398,0.04965,130.28,130.26,7.7369223]
[1744546770799,0.04965,130.28,130.26,0.0582223]
[1744546771795,0.04965,130.28,130.27,7.6785]
[1744546776404,0.04965,130.28,130.26,7.7370223]
[1744546778708,0.04965,130.28,130.27,7.6785]
[1744546779213,0.04965,130.28,130.26,0.0582223]
[1744546779613,0.04965,130.28,130.26,7.7370223]
[1744546780114,0.04965,130.28,130.26,0.0582223]
[1744546780613,7.72785,130.28,130.26,0.0582223]
[1744546784416,7.6785,130.27,130.26,0.0582223]
[1744546784916,0.04965,130.28,130.21,7.6816]
[1744546784917,7.68,130.25,130.21,7.6816]
[1744546785116,30.92,130.25,130.21,7.6816]
[1744546785520,7.6803,130.24,130.21,7.6816]
[1744546785923,7.73848378,130.24,130.21,7.73958935]
[1744546788222,7.6809,130.23,130.21,7.73958935]
[1744546788722,7.6814,130.22,130.21,0.05798935]
[1744546789120,0.05818378,130.24,130.21,0.05798935]
[1744546789425,7.6812,130.23,130.21,0.05798935]
[1744546791121,7.6812,130.23,130.21,7.73998935]
[1744546791627,7.6814,130.22,130.21,0.05798935]
[1744546792025,0.05818378,130.24,130.21,0.05798935]
[1744546792720,7.6811,130.23,130.21,0.05798935]
[1744546793728,7.6811,130.23,130.21,7.73998935]
[1744546794422,7.6811,130.23,130.21,0.05798935]
[1744546794626,7.6814,130.22,130.21,0.05798935]
[1744546794826,0.05818378,130.24,130.21,0.05798935]
[1744546795226,7.681,130.23,130.21,0.05798935]
[1744546795524,7.681,130.23,130.21,7.73988935]
[1744546795924,0.05818378,130.24,130.21,0.05798935]
[1744546796123,0.05818378,130.24,130.21,7.73988935]
[1744546796527,7.73868378,130.24,130.21,7.73988935]
[1744546797129,7.6809,130.23,130.21,0.05798935]
[1744546797527,0.05818378,130.24,130.21,0.05798935]
[1744546797727,7.73868378,130.24,130.21,7.73958935]
[1744546798832,0.05818378,130.24,130.21,0.05798935]
[1744546799635,7.6814,130.22,130.21,0.05798935]
[1744546805741,6.11008378,130.24,130.15,11.7338]
[1744546805931,54.04,130.23,130.09,35.95258485]
[1744546806134,54.04,130.23,130.09,40.02338485]
[1744546806339,54.04,130.23,130.12,7.687]
[1744546806539,54.04,130.23,130.09,40.02338485]
[1744546806840,1.40694095,130.22,130.09,40.02338485]
[1744546807037,0.05641147,130.17,130.15,0.05386531]
[1744546807236,30.94,130.16,130.15,0.05386531]
[1744546807437,0.04889786,130.17,130.15,7.73906531]
[1744546811140,0.04889786,130.17,130.16,7.685]
[1744546812232,0.04889786,130.17,130.15,7.73916531]
[1744546812841,0.04889786,130.17,130.16,7.685]
[1744546813839,0.04889786,130.17,130.15,7.73916531]
[1744546816147,0.04889786,130.17,130.16,7.685]
[1744546823449,30.94,130.2,130.18,7.6834]
[1744546824550,30.99602783,130.2,130.18,7.73443073]
[1744546824853,38.67862783,130.2,130.18,7.73443073]
[1744546825553,30.99602783,130.2,130.18,7.73443073]
[1744546826447,38.67872783,130.2,130.18,0.05103073]
[1744546826943,30.99602783,130.2,130.18,0.05103073]
[1744546827143,38.67862783,130.2,130.18,7.73443073]
[1744546827560,38.67862783,130.2,130.18,0.05103073]
[1744546827953,7.6832,130.19,130.18,0.05103073]
[1744546832263,239.3532643,130.36,130.18,406.87835922]
[1744546832475,3.37079486,130.33,130.19,12.31652849]
[1744546832662,30.94,130.32,130.2,10.20732849]
[1744546832860,30.94,130.32,130.21,38.06217013]
[1744546833060,30.94,130.32,130.21,30.94]
[1744546833262,7.6777,130.29,130.21,30.94]
[1744546833461,0.05232624,130.28,130.25,0.04892957]
[1744546834062,0.05232624,130.28,130.25,7.72822957]
[1744546835376,7.73032624,130.28,130.25,0.04892957]
[1744546835577,30.97232624,130.28,130.25,0.04892957]
[1744546835767,38.65232624,130.28,130.19,2.1092]
[1744546835970,38.65232624,130.28,130.11,1457.46]
[1744546835971,7.6818,130.22,130.17,7.6842]
[1744546836170,7.6818,130.22,130.18,7.91656739]
[1744546836676,7.6818,130.22,130.18,7.6837]
[1744546836976,0.05071463,130.21,130.19,0.05231558]
[1744546838173,7.73071463,130.21,130.14,8.98814621]
[1744546838478,5.63892267,130.2,130.11,107.43790267]
[1744546838674,1.40732267,130.19,130.1,179.06317112]
[1744546838981,608.48,130.18,130.1,63.43429509]
[1744546839276,1.40840089,130.17,129.97,639.4750487]
[1744546839474,0.05371416,130.15,130.13,0.05837035]
[1744546839680,7.6903,130.07,130.06,26.89794911]
[1744546839976,647.1103,130.07,130.06,4.911e-05]
[1744546840480,30.94,130.09,129.98,77.28435999]
[1744546840775,30.94,130.09,129.99,7.6945]
[1744546841076,0.05694834,130.05,130.02,0.05113246]
[1744546842673,0.05694834,130.05,129.98,69.58885999]
[1744546843877,5.75328707,130.04,130.0,0.04948091]
[1744546844078,5.75328707,130.03,130.0,0.04948091]
[1744546844278,7.6943,130.01,130.0,0.04948091]
[1744546844475,5.75328707,130.01,130.0,0.04948091]
[1744546844676,18.63457288,130.01,130.0,0.04948091]
[1744546845280,18.63457288,130.01,130.0,8.091e-05]
[1744546846177,10.94077288,130.01,130.0,8.091e-05]
[1744546847074,10.91869747,130.01,130.0,8.091e-05]
[1744546847279,18.61249747,130.01,130.0,8.091e-05]
[1744546848076,182.95180116,130.01,130.0,8.091e-05]
[1744546848772,220.90007109,130.01,130.0,8.091e-05]
[1744546849781,7.6961,129.98,129.91,30.94]
[1744546849983,5.73121166,129.97,129.91,30.94]
[1744546850179,13.42781166,129.97,129.92,38.6587]
[1744546850380,10.91869747,129.96,129.92,30.96]
[1744546850579,96.48709897,129.96,129.92,30.96]
[1744546850884,96.48709897,129.96,129.93,30.96]
[1744546851383,54.7797679,129.96,129.95,7.6974]
[1744546851583,7.6945,130.0,129.95,15.3974]
[1744546851780,10.857712,129.99,129.95,7.6974]
[1744546851981,5.15211235,129.99,129.95,30.96]
[1744546852182,0.05744163,129.98,129.96,0.04945302]
[1744546852374,174.21078863,129.97,129.96,0.04945302]
[1744546852575,151.24388863,129.97,129.96,0.04945302]
[1744546852780,151.24388863,129.97,129.96,7.74945302]
[1744546853278,155.33786482,129.97,129.96,7.74945302]
[1744546853478,150.18575247,129.97,129.96,0.04945302]
[1744546854485,405.25322662,129.97,129.96,0.04945302]
[1744546854880,410.39843772,129.97,129.96,0.04945302]
[1744546855188,418.09463772,129.97,129.96,0.04945302]
[1744546855484,194.58379236,129.97,129.96,0.04945302]
[1744546855785,200.27905137,129.97,129.96,0.04945302]
[1744546856080,194.58379236,129.97,129.96,0.04945302]
[1744546856286,194.58379236,129.97,129.94,30.96]
[1744546856785,5.1452111,129.96,129.94,30.96]
[1744546857082,5.1452111,129.96,129.93,30.96]
[1744546857286,83.43652915,129.95,129.93,30.96]
[1744546857488,96.27914025,129.95,129.94,0.05249004]
[1744546857684,88.58174025,129.95,129.91,30.96]
[1744546857883,83.43652915,129.95,129.91,30.96]
[1744546858083,83.43652915,129.95,129.92,7.699]
[1744546858283,150.18575247,129.95,129.91,30.96]
[1744546858483,157.88315247,129.95,129.91,30.96]
[1744546858685,157.88315247,129.95,129.91,38.6593]
[1744546858885,157.88325247,129.95,129.92,0.05358147]
[1744546859082,150.18575247,129.95,129.92,7.75228147]
[1744546859285,150.18575247,129.94,129.92,0.05358147]
[1744546859690,150.18575247,129.94,129.91,30.96]
[1744546860690,83.43652915,129.93,129.91,30.96]
[1744546860989,83.43652915,129.93,129.89,30.96]
[1744546861290,83.48999778,129.93,129.89,30.96]
[1744546861693,7.75246863,129.93,129.89,38.6608]
[1744546861990,0.05346863,129.93,129.89,30.96]
[1744546862491,0.05346863,129.93,129.92,7.6991]
[1744546864492,0.05346863,129.93,129.91,7.6996]
[1744546864886,0.05346863,129.93,129.89,30.96]
[1744546865987,0.05346863,129.93,129.89,38.6605]
[1744546866290,7.75226863,129.93,129.89,30.96]
[1744546866492,7.75226863,129.93,129.9,7.6997]
[1744546867687,0.05346863,129.93,129.89,30.96]
[1744546868089,0.05346863,129.93,129.85,1.3396724]
[1744546868390,5.1295594,129.92,129.84,150.10936965]
[1744546868695,0.05579341,129.9,129.84,150.10936965]
[1744546868894,7.7013,129.89,129.86,7.7022]
[1744546869190,0.05579341,129.9,129.86,7.7022]
[1744546869495,0.05579341,129.9,129.8,30.96]
[1744546869496,0.05579341,129.9,129.8,181.06936965]
[1744546869700,5.13052574,129.89,129.8,30.96]
[1744546869993,7.7044,129.84,129.8,7.7061]
[1744546870186,30.96,129.85,129.77,30.96]
[1744546870389,30.96,129.85,129.78,7.7072]
[1744546870690,0.05828204,129.82,129.74,32.30075629]
[1744546871090,30.96,129.85,129.74,32.30075629]
[1744546871391,0.04863675,129.79,129.73,15.95012594]
[1744546871592,30.98,129.78,129.7,70.52398313]
[1744546871991,0.05695812,129.75,129.7,70.52398313]
[1744546872296,30.98,129.79,129.7,86.47410907]
[1744546872493,0.05520796,129.74,129.7,86.47410907]
[1744546872692,7.96e-06,129.74,129.73,7.7104]
[1744546873988,6.0438,129.88,129.73,38.68]
[1744546874194,13.37751257,129.87,129.73,46.93012594]
[1744546874394,5.67501257,129.86,129.74,62.0]
[1744546874597,30.98,129.86,129.84,7.7035]
[1744546874797,30.98,129.86,129.78,30.98]
[1744546874999,4.95129844,129.87,129.86,7.7027]
[1744546875205,30.98,129.9,129.86,7.7027]
[1744546875502,0.05543526,129.88,129.87,7.7021]
[1744546875698,30.98,129.89,129.87,0.05811093]
[1744546875996,4.95027616,129.88,129.87,0.05811093]
[1744546876300,4.95027616,129.88,129.87,352.52795881]
[1744546876501,30.98,129.88,129.87,352.52795881]
[1744546877098,0.05367633,129.89,129.87,352.52795881]
[1744546877298,0.05367633,129.89,129.88,7.7015]
[1744546877798,30.98,129.93,129.87,352.52795881]
[1744546877999,5.68126625,129.92,129.87,352.52795881]
[1744546878504,5.68126625,129.92,129.91,7.6997]
[1744546879106,0.05270477,129.93,129.92,7.6991]
[1744546879506,5.74490451,129.93,129.92,7.6991]
[1744546879699,5.74490451,129.93,129.92,91.1862756]
[1744546880099,266.62999145,129.95,129.93,7.6986]
[1744546880300,5.70452029,129.94,129.93,7.6986]
[1744546880500,5.70452029,129.94,129.92,83.4871756]
[1744546880702,5.70452029,129.93,129.92,83.4871756]
[1744546881907,5.59255,129.93,129.92,76.9851756]
[1744546882805,31.03146488,129.94,129.92,76.9851756]
[1744546883207,0.05146488,129.94,129.92,76.9851756]
[1744546883507,0.05146488,129.94,129.93,7.6986]
[1744546885004,1.9544,129.97,129.92,31.44671618]
[1744546885197,30.98,129.96,129.92,31.44671618]
[1744546885596,30.98,129.96,129.93,7.6984]
[1744546885805,30.98,129.96,129.92,31.44671618]
[1744546886007,30.98,129.96,129.93,7.698]
[1744546886207,0.05690064,129.95,129.92,31.44671618]
[1744546886407,31.03690064,129.95,129.92,31.44671618]
[1744546886608,31.03690064,129.95,129.94,7.698]
[1744546887909,0.05690064,129.95,129.94,7.698]
[1744546889000,4.90815332,129.95,129.94,7.698]
[1744546889704,30.96,129.99,129.98,7.6956]